[Event "*** Titled Tuesday Blitz"]
[Site "Chess.com"]
[Date "2021.03.30"]
[Round "1"]
[White "xberli"]
[Black "novocane"]
[Result "0-1"]
[WhiteElo "2524"]
[BlackElo "2235"]
[TimeControl "180+1"]
[EndTime "10:09:00 PDT"]
[Termination "novocane won by checkmate"]

1. d4 {[%clk 0:03:00.9]} 1... Nf6 {[%clk 0:02:59.4]} 2. Nc3 {[%clk 0:03:00.8]}
2... d5 {[%clk 0:02:57]} 3. Bf4 {[%clk 0:03:00.5]} 3... a6 {[%clk 0:02:55.8]} 4.
e3 {[%clk 0:02:48.2]} 4... c5 {[%clk 0:02:54.1]} 5. h3 {[%clk 0:02:43.6]} 5...
Nc6 {[%clk 0:02:52.6]} 6. Nge2 {[%clk 0:02:42.3]} 6... Bf5 {[%clk 0:02:47.9]} 7.
g4 {[%clk 0:02:40.7]} 7... Bg6 {[%clk 0:02:44.3]} 8. Bg2 {[%clk 0:02:37.1]} 8...
e6 {[%clk 0:02:38.7]} 9. Qd2 {[%clk 0:02:30]} 9... Bd6 {[%clk 0:02:13]} 10. g5
{[%clk 0:02:09.2]} 10... Nh5 {[%clk 0:01:48.8]} 11. Bxd6 {[%clk 0:02:02.1]}
11... Qxd6 {[%clk 0:01:48.3]} 12. O-O-O {[%clk 0:01:59.4]} 12... O-O {[%clk
0:01:19.1]} 13. Bf3 {[%clk 0:01:39]} 13... Rfc8 {[%clk 0:01:09.3]} 14. Rdg1
{[%clk 0:01:28.4]} 14... b5 {[%clk 0:01:03.8]} 15. dxc5 {[%clk 0:01:10.9]} 15...
Qxc5 {[%clk 0:01:03.3]} 16. Bxh5 {[%clk 0:01:10.7]} 16... Bxh5 {[%clk
0:01:02.7]} 17. Nf4 {[%clk 0:01:10.8]} 17... Bg6 {[%clk 0:00:59]} 18. Nxg6
{[%clk 0:01:07.8]} 18... hxg6 {[%clk 0:00:57.5]} 19. Kb1 {[%clk 0:01:05.9]}
19... Ne5 {[%clk 0:00:57]} 20. Qd4 {[%clk 0:00:51.7]} 20... Qxd4 {[%clk
0:00:22.7]} 21. exd4 {[%clk 0:00:52.6]} 21... Nf3 {[%clk 0:00:21.1]} 22. Rd1
{[%clk 0:00:52.3]} 22... Rc4 {[%clk 0:00:19.8]} 23. Ne2 {[%clk 0:00:51.4]} 23...
Nxg5 {[%clk 0:00:18.3]} 24. c3 {[%clk 0:00:49.4]} 24... Rb8 {[%clk 0:00:17.3]}
25. a3 {[%clk 0:00:48.7]} 25... a5 {[%clk 0:00:17.1]} 26. f4 {[%clk 0:00:42.4]}
26... Ne4 {[%clk 0:00:17]} 27. Rhf1 {[%clk 0:00:31.8]} 27... b4 {[%clk 0:00:17]}
28. cxb4 {[%clk 0:00:27.7]} 28... axb4 {[%clk 0:00:17.9]} 29. a4 {[%clk
0:00:19.2]} 29... b3 {[%clk 0:00:17.9]} 30. Rd3 {[%clk 0:00:16.5]} 30... Rxa4
{[%clk 0:00:16.9]} 31. Nc3 {[%clk 0:00:16.2]} 31... Nxc3+ {[%clk 0:00:13.4]} 32.
Rxc3 {[%clk 0:00:17.1]} 32... Rxd4 {[%clk 0:00:12.4]} 33. Kc1 {[%clk 0:00:15.8]}
33... Rc4 {[%clk 0:00:09.8]} 34. Kd2 {[%clk 0:00:14.4]} 34... Rbb4 {[%clk
0:00:10]} 35. Rxc4 {[%clk 0:00:13.5]} 35... Rxc4 {[%clk 0:00:10.3]} 36. Kd3
{[%clk 0:00:12.3]} 36... Rc2 {[%clk 0:00:10.2]} 37. Rb1 {[%clk 0:00:12.2]} 37...
Rh2 {[%clk 0:00:06.4]} 38. Kd4 {[%clk 0:00:10.6]} 38... Rxh3 {[%clk 0:00:06.6]}
39. Rc1 {[%clk 0:00:06.5]} 39... Rf3 {[%clk 0:00:04.1]} 40. Rc8+ {[%clk
0:00:05.3]} 40... Kh7 {[%clk 0:00:04.3]} 41. Rb8 {[%clk 0:00:03.7]} 41... Rxf4+
{[%clk 0:00:03.4]} 42. Ke3 {[%clk 0:00:01.9]} 42... Re4+ {[%clk 0:00:03.2]} 43.
Kd3 {[%clk 0:00:02.1]} 43... g5 {[%clk 0:00:01.5]} 44. Rxb3 {[%clk 0:00:03]}
44... g4 {[%clk 0:00:02.3]} 45. Kd2 {[%clk 0:00:02.8]} 45... Kg6 {[%clk
0:00:03.2]} 46. Rg3 {[%clk 0:00:03.3]} 46... f5 {[%clk 0:00:04.1]} 47. Rg1
{[%clk 0:00:04.2]} 47... Kf6 {[%clk 0:00:04.6]} 48. Rb1 {[%clk 0:00:05.1]} 48...
Rb4 {[%clk 0:00:04.7]} 49. Kc3 {[%clk 0:00:04.9]} 49... Rb8 {[%clk 0:00:05.6]}
50. b4 {[%clk 0:00:05.2]} 50... e5 {[%clk 0:00:06]} 51. b5 {[%clk 0:00:05.6]}
51... d4+ {[%clk 0:00:06.9]} 52. Kd3 {[%clk 0:00:05.8]} 52... g3 {[%clk
0:00:07.5]} 53. b6 {[%clk 0:00:05.9]} 53... f4 {[%clk 0:00:08.4]} 54. Ke4 {[%clk
0:00:05.8]} 54... g2 {[%clk 0:00:07.6]} 55. Kf3 {[%clk 0:00:05.4]} 55... g5
{[%clk 0:00:07.9]} 56. Kxg2 {[%clk 0:00:05]} 56... Kf5 {[%clk 0:00:08.8]} 57. b7
{[%clk 0:00:05.3]} 57... g4 {[%clk 0:00:08.9]} 58. Kf2 {[%clk 0:00:05.4]} 58...
d3 {[%clk 0:00:09.2]} 59. Ke1 {[%clk 0:00:04.7]} 59... g3 {[%clk 0:00:09.6]} 60.
Kd2 {[%clk 0:00:04.6]} 60... e4 {[%clk 0:00:09.9]} 61. Rb5+ {[%clk 0:00:05]}
61... Kg4 {[%clk 0:00:10.4]} 62. Rb4 {[%clk 0:00:05.2]} 62... Kf3 {[%clk
0:00:10.7]} 63. Rb1 {[%clk 0:00:04.2]} 63... g2 {[%clk 0:00:10.8]} 64. Rc1
{[%clk 0:00:04.5]} 64... Rxb7 {[%clk 0:00:11.1]} 65. Rd1 {[%clk 0:00:04]} 65...
Rb2+ {[%clk 0:00:11.4]} 66. Kc3 {[%clk 0:00:04.1]} 66... Re2 {[%clk 0:00:11.8]}
67. Kd4 {[%clk 0:00:04.4]} 67... Kf2 {[%clk 0:00:12.2]} 68. Ke5 {[%clk
0:00:04.1]} 68... g1=Q {[%clk 0:00:12.6]} 69. Rd2 {[%clk 0:00:02.9]} 69... Rxd2
{[%clk 0:00:12.7]} 70. Kxf4 {[%clk 0:00:03.8]} 70... Re2 {[%clk 0:00:13.2]} 71.
Ke5 {[%clk 0:00:03.9]} 71... d2 {[%clk 0:00:13.8]} 72. Kd4 {[%clk 0:00:04.8]}
72... d1=Q+ {[%clk 0:00:14.2]} 73. Kc4 {[%clk 0:00:05.7]} 73... Re1 {[%clk
0:00:14.7]} 74. Kc3 {[%clk 0:00:06.6]} 74... Qg3+ {[%clk 0:00:14.9]} 75. Kc4
{[%clk 0:00:07.5]} 75... Qgd3+ {[%clk 0:00:14.8]} 76. Kb4 {[%clk 0:00:08.4]}
76... Q1b1+ {[%clk 0:00:14.9]} 77. Kc5 {[%clk 0:00:09.3]} 77... Rc1# {[%clk
0:00:14.6]} 0-1

[Event "*** Titled Tuesday Blitz"]
[Site "Chess.com"]
[Date "2021.03.30"]
[Round "1"]
[White "sakkikuska"]
[Black "FairChess_on_YouTube"]
[Result "1/2-1/2"]
[WhiteElo "2480"]
[BlackElo "3003"]
[TimeControl "180+1"]
[EndTime "10:09:15 PDT"]
[Termination "Game drawn - insufficient material"]

1. e4 {[%clk 0:02:59.6]} 1... c5 {[%clk 0:02:59.5]} 2. Nf3 {[%clk 0:02:59.6]}
2... d6 {[%clk 0:02:58.8]} 3. d4 {[%clk 0:02:59.8]} 3... cxd4 {[%clk 0:02:59.7]}
4. Nxd4 {[%clk 0:03:00.6]} 4... Nf6 {[%clk 0:03:00.1]} 5. f3 {[%clk 0:03:00.9]}
5... e5 {[%clk 0:02:56.8]} 6. Nb3 {[%clk 0:02:59.1]} 6... Be7 {[%clk 0:02:56.9]}
7. c4 {[%clk 0:02:52.2]} 7... O-O {[%clk 0:02:56.7]} 8. Nc3 {[%clk 0:02:51.2]}
8... a5 {[%clk 0:02:56.5]} 9. Be3 {[%clk 0:02:50.5]} 9... a4 {[%clk 0:02:53.9]}
10. Nd2 {[%clk 0:02:50.5]} 10... Qa5 {[%clk 0:02:54.4]} 11. Bd3 {[%clk
0:02:45.5]} 11... a3 {[%clk 0:02:42.2]} 12. Nb3 {[%clk 0:02:35.9]} 12... Qd8
{[%clk 0:02:36.2]} 13. bxa3 {[%clk 0:02:28.5]} 13... Be6 {[%clk 0:02:35.5]} 14.
O-O {[%clk 0:02:27.1]} 14... Nc6 {[%clk 0:02:34.7]} 15. Nb5 {[%clk 0:02:22.1]}
15... Qb8 {[%clk 0:02:30]} 16. Qe2 {[%clk 0:02:18.7]} 16... Rc8 {[%clk
0:02:29.8]} 17. Rab1 {[%clk 0:02:16]} 17... h6 {[%clk 0:02:28.6]} 18. Rfd1
{[%clk 0:02:10]} 18... Nd7 {[%clk 0:02:27.8]} 19. Qf2 {[%clk 0:02:05.4]} 19...
Ra4 {[%clk 0:02:12.8]} 20. Rdc1 {[%clk 0:02:01.4]} 20... Qa8 {[%clk 0:02:10.6]}
21. c5 {[%clk 0:01:36.5]} 21... dxc5 {[%clk 0:01:51.9]} 22. Nxc5 {[%clk
0:01:36.8]} 22... Nxc5 {[%clk 0:01:49.1]} 23. Bxc5 {[%clk 0:01:37.6]} 23... Bxc5
{[%clk 0:01:47]} 24. Rxc5 {[%clk 0:01:35.4]} 24... Nd4 {[%clk 0:01:40.3]} 25.
Rxc8+ {[%clk 0:01:26.7]} 25... Qxc8 {[%clk 0:01:37.6]} 26. Nxd4 {[%clk
0:01:25.5]} 26... Rxd4 {[%clk 0:01:37.3]} 27. Bb5 {[%clk 0:01:23.3]} 27... Qc3
{[%clk 0:01:32.8]} 28. h3 {[%clk 0:01:11.5]} 28... Rd2 {[%clk 0:01:20.5]} 29.
Qe1 {[%clk 0:01:08.5]} 29... Qc5+ {[%clk 0:00:53.4]} 30. Kh1 {[%clk 0:01:04.3]}
30... Rxa2 {[%clk 0:00:52.9]} 31. a4 {[%clk 0:00:56.6]} 31... Kh7 {[%clk
0:00:50.1]} 32. Bd3 {[%clk 0:00:48.7]} 32... b6 {[%clk 0:00:39.7]} 33. Ra1
{[%clk 0:00:38.7]} 33... Rb2 {[%clk 0:00:34.4]} 34. Rb1 {[%clk 0:00:37.1]} 34...
Ra2 {[%clk 0:00:34.3]} 35. Ra1 {[%clk 0:00:37.3]} 35... Qa5 {[%clk 0:00:29.9]}
36. Bb5 {[%clk 0:00:25.6]} 36... g5 {[%clk 0:00:18.3]} 37. Kh2 {[%clk
0:00:23.5]} 37... Qxe1 {[%clk 0:00:14.4]} 38. Rxe1 {[%clk 0:00:24.4]} 38... h5
{[%clk 0:00:13.2]} 39. Rb1 {[%clk 0:00:21.2]} 39... Kg6 {[%clk 0:00:11.6]} 40.
Bc6 {[%clk 0:00:17.7]} 40... g4 {[%clk 0:00:11.3]} 41. hxg4 {[%clk 0:00:17.4]}
41... hxg4 {[%clk 0:00:12.2]} 42. Kg3 {[%clk 0:00:17.9]} 42... Kg5 {[%clk
0:00:09.9]} 43. Rxb6 {[%clk 0:00:11.5]} 43... gxf3 {[%clk 0:00:09.4]} 44. gxf3
{[%clk 0:00:12.4]} 44... Bc4 {[%clk 0:00:09.5]} 45. Bb5 {[%clk 0:00:10.3]} 45...
Bb3 {[%clk 0:00:05]} 46. Rc6 {[%clk 0:00:07.8]} 46... Bxa4 {[%clk 0:00:03.7]}
47. Bxa4 {[%clk 0:00:08.1]} 47... Rxa4 {[%clk 0:00:04.2]} 48. Rc5 {[%clk
0:00:09]} 48... f6 {[%clk 0:00:03.6]} 49. Rc8 {[%clk 0:00:09]} 49... Kg6 {[%clk
0:00:03.4]} 50. Rc7 {[%clk 0:00:09.3]} 50... Rb4 {[%clk 0:00:02.8]} 51. Rc6
{[%clk 0:00:09.7]} 51... Ra4 {[%clk 0:00:03.2]} 52. Rb6 {[%clk 0:00:10.1]} 52...
Ra5 {[%clk 0:00:03.3]} 53. Rc6 {[%clk 0:00:10.6]} 53... Ra7 {[%clk 0:00:03.4]}
54. Rc3 {[%clk 0:00:11.1]} 54... Rg7 {[%clk 0:00:03.6]} 55. f4 {[%clk
0:00:10.5]} 55... Kh5+ {[%clk 0:00:03.3]} 56. Kf3 {[%clk 0:00:10.9]} 56... Kh4
{[%clk 0:00:03.1]} 57. Rc6 {[%clk 0:00:04.4]} 57... Rg3+ {[%clk 0:00:03.4]} 58.
Kf2 {[%clk 0:00:04.9]} 58... exf4 {[%clk 0:00:03.9]} 59. Rxf6 {[%clk 0:00:05.1]}
59... Kg5 {[%clk 0:00:04.5]} 60. Rf8 {[%clk 0:00:04.8]} 60... Re3 {[%clk
0:00:04.5]} 61. Rg8+ {[%clk 0:00:04.8]} 61... Kf6 {[%clk 0:00:04.5]} 62. Rf8+
{[%clk 0:00:04.7]} 62... Ke5 {[%clk 0:00:05.1]} 63. Re8+ {[%clk 0:00:04.3]}
63... Kd4 {[%clk 0:00:05.6]} 64. Rd8+ {[%clk 0:00:04.3]} 64... Kxe4 {[%clk
0:00:06]} 65. Re8+ {[%clk 0:00:04.6]} 65... Kd3 {[%clk 0:00:06.6]} 66. Rd8+
{[%clk 0:00:02.6]} 66... Kc2 {[%clk 0:00:07]} 67. Rc8+ {[%clk 0:00:01.5]} 67...
Kd2 {[%clk 0:00:07.6]} 68. Rd8+ {[%clk 0:00:01.9]} 68... Kc3 {[%clk 0:00:08.2]}
69. Rc8+ {[%clk 0:00:02.2]} 69... Kd4 {[%clk 0:00:08.8]} 70. Rd8+ {[%clk
0:00:02.5]} 70... Kc5 {[%clk 0:00:09.4]} 71. Rf8 {[%clk 0:00:01.9]} 71... Re4
{[%clk 0:00:09]} 72. Kf3 {[%clk 0:00:01.6]} 72... Rc4 {[%clk 0:00:09.6]} 73.
Rxf4 {[%clk 0:00:02.3]} 73... Rxf4+ {[%clk 0:00:10.2]} 74. Kxf4 {[%clk
0:00:02.8]} 1/2-1/2

[Event "*** Titled Tuesday Blitz"]
[Site "Chess.com"]
[Date "2021.03.30"]
[Round "1"]
[White "Jospem"]
[Black "adriangschnitzer"]
[Result "0-1"]
[WhiteElo "2948"]
[BlackElo "2492"]
[TimeControl "180+1"]
[EndTime "10:09:20 PDT"]
[Termination "adriangschnitzer won by resignation"]

1. e4 {[%clk 0:03:00.9]} 1... c5 {[%clk 0:02:57.9]} 2. Nf3 {[%clk 0:03:00.9]}
2... Nc6 {[%clk 0:02:57.4]} 3. Bc4 {[%clk 0:02:56.9]} 3... g6 {[%clk 0:02:56.3]}
4. Nc3 {[%clk 0:02:57.3]} 4... Bg7 {[%clk 0:02:55.9]} 5. d3 {[%clk 0:02:57.9]}
5... e6 {[%clk 0:02:53.6]} 6. O-O {[%clk 0:02:57.4]} 6... Nge7 {[%clk
0:02:53.3]} 7. a3 {[%clk 0:02:58]} 7... a6 {[%clk 0:02:53.1]} 8. Ba2 {[%clk
0:02:58.4]} 8... O-O {[%clk 0:02:52.5]} 9. Be3 {[%clk 0:02:50.4]} 9... b6 {[%clk
0:02:51.3]} 10. Qd2 {[%clk 0:02:47.4]} 10... d5 {[%clk 0:02:50.4]} 11. Bh6
{[%clk 0:02:46.6]} 11... dxe4 {[%clk 0:02:45.2]} 12. Nxe4 {[%clk 0:02:40.3]}
12... Bxh6 {[%clk 0:02:35.8]} 13. Qxh6 {[%clk 0:02:39.6]} 13... Nf5 {[%clk
0:02:35.9]} 14. Qf4 {[%clk 0:02:38.3]} 14... Ncd4 {[%clk 0:02:30.9]} 15. Nxd4
{[%clk 0:02:37.5]} 15... Nxd4 {[%clk 0:02:31.8]} 16. Qd2 {[%clk 0:02:00.9]}
16... Bb7 {[%clk 0:02:29.5]} 17. Rae1 {[%clk 0:01:59.1]} 17... Rc8 {[%clk
0:02:21.9]} 18. c3 {[%clk 0:01:58.1]} 18... Bxe4 {[%clk 0:02:14.8]} 19. Rxe4
{[%clk 0:01:57.5]} 19... Nf5 {[%clk 0:02:14.3]} 20. Rd1 {[%clk 0:01:53.2]} 20...
Qd6 {[%clk 0:02:12.9]} 21. g3 {[%clk 0:01:52.1]} 21... Rfd8 {[%clk 0:02:12.3]}
22. Ree1 {[%clk 0:01:49.5]} 22... Rc7 {[%clk 0:01:55.6]} 23. Qe2 {[%clk
0:01:49.4]} 23... Rcd7 {[%clk 0:01:52.7]} 24. Bb1 {[%clk 0:01:46.7]} 24... Qc7
{[%clk 0:01:47.5]} 25. Qf3 {[%clk 0:01:42.9]} 25... Rd6 {[%clk 0:01:41.1]} 26.
Rc1 {[%clk 0:01:43]} 26... b5 {[%clk 0:01:40.3]} 27. b4 {[%clk 0:01:41.7]} 27...
a5 {[%clk 0:01:34.4]} 28. Qf4 {[%clk 0:01:39.6]} 28... Rc6 {[%clk 0:01:29.4]}
29. Qxc7 {[%clk 0:01:09.9]} 29... Rxc7 {[%clk 0:01:30.3]} 30. bxc5 {[%clk
0:01:07.9]} 30... Rxc5 {[%clk 0:01:29.8]} 31. d4 {[%clk 0:01:08.4]} 31... Rc7
{[%clk 0:01:26.9]} 32. Bd3 {[%clk 0:01:08.3]} 32... Rdc8 {[%clk 0:01:23.8]} 33.
Bxb5 {[%clk 0:01:00.9]} 33... Nxd4 {[%clk 0:01:21.6]} 34. Ba6 {[%clk 0:00:57.2]}
34... Nf3+ {[%clk 0:01:01.5]} 35. Kf1 {[%clk 0:00:48.6]} 35... Ra8 {[%clk
0:00:58.8]} 36. Re3 {[%clk 0:00:45.7]} 36... Nxh2+ {[%clk 0:00:58]} 37. Kg2
{[%clk 0:00:46.1]} 37... Ng4 {[%clk 0:00:55.4]} 38. Re4 {[%clk 0:00:46.5]} 38...
Nf6 {[%clk 0:00:53.6]} 39. Rc4 {[%clk 0:00:46.8]} 39... Rxc4 {[%clk 0:00:43.4]}
40. Bxc4 {[%clk 0:00:47.7]} 40... Rc8 {[%clk 0:00:43.8]} 41. Ba6 {[%clk
0:00:45.5]} 41... Rc6 {[%clk 0:00:43]} 42. Bb5 {[%clk 0:00:45.1]} 42... Rc5
{[%clk 0:00:41.8]} 43. c4 {[%clk 0:00:45.1]} 43... Kf8 {[%clk 0:00:40.9]} 44.
Kf3 {[%clk 0:00:43.8]} 44... Ke7 {[%clk 0:00:40.9]} 45. Ke3 {[%clk 0:00:44.4]}
45... e5 {[%clk 0:00:35.8]} 46. a4 {[%clk 0:00:44.5]} 46... Nd5+ {[%clk
0:00:31.2]} 47. Kd2 {[%clk 0:00:43.1]} 47... Nb6 {[%clk 0:00:27.9]} 48. Kc3
{[%clk 0:00:43.6]} 48... f5 {[%clk 0:00:25.5]} 49. Rh1 {[%clk 0:00:42.1]} 49...
Nd5+ {[%clk 0:00:23.8]} 50. Kd3 {[%clk 0:00:37.8]} 50... Nf6 {[%clk 0:00:24.7]}
51. f3 {[%clk 0:00:38.4]} 51... h5 {[%clk 0:00:23.9]} 52. Ke3 {[%clk 0:00:38.1]}
52... Ke6 {[%clk 0:00:23.7]} 53. Rd1 {[%clk 0:00:37.8]} 53... e4 {[%clk
0:00:22.2]} 54. Rd8 {[%clk 0:00:36.6]} 54... exf3 {[%clk 0:00:21.1]} 55. Kxf3
{[%clk 0:00:37.5]} 55... Ne4 {[%clk 0:00:21]} 56. Ra8 {[%clk 0:00:37.5]} 56...
Nd6 {[%clk 0:00:19.9]} 57. Rxa5 {[%clk 0:00:36.3]} 57... Nxc4 {[%clk 0:00:19.9]}
58. Ra6+ {[%clk 0:00:34.2]} 58... Nd6 {[%clk 0:00:18.9]} 59. Bd3 {[%clk
0:00:32.6]} 59... Ke5 {[%clk 0:00:18.7]} 60. a5 {[%clk 0:00:31.8]} 60... g5
{[%clk 0:00:18.8]} 61. Ra8 {[%clk 0:00:31.3]} 61... g4+ {[%clk 0:00:19.7]} 62.
Ke3 {[%clk 0:00:31.7]} 62... Rc3 {[%clk 0:00:19.1]} 63. a6 {[%clk 0:00:31.9]}
63... Ra3 {[%clk 0:00:18.9]} 64. Rh8 {[%clk 0:00:28.4]} 64... Nc4+ {[%clk
0:00:15.6]} 65. Ke2 {[%clk 0:00:28.4]} 65... Ra2+ {[%clk 0:00:13.4]} 66. Ke1
{[%clk 0:00:27.5]} 66... Kd4 {[%clk 0:00:11.9]} 67. Rd8+ {[%clk 0:00:18.1]}
67... Kc3 {[%clk 0:00:11.6]} 68. Bxf5 {[%clk 0:00:12.1]} 68... Rxa6 {[%clk
0:00:07.8]} 69. Rd3+ {[%clk 0:00:12.7]} 69... Kb4 {[%clk 0:00:07.2]} 70. Rd8
{[%clk 0:00:12.9]} 70... Ra1+ {[%clk 0:00:06.7]} 71. Ke2 {[%clk 0:00:13.1]}
71... Ra2+ {[%clk 0:00:07.2]} 72. Ke1 {[%clk 0:00:12.2]} 72... Ne3 {[%clk
0:00:07]} 73. Bg6 {[%clk 0:00:10.7]} 73... Kc5 {[%clk 0:00:05.8]} 74. Bxh5
{[%clk 0:00:10]} 74... Ng2+ {[%clk 0:00:04.7]} 75. Kf1 {[%clk 0:00:09.9]} 75...
Ne3+ {[%clk 0:00:05.6]} 76. Ke1 {[%clk 0:00:10.6]} 76... Ng2+ {[%clk 0:00:05.1]}
77. Kd1 {[%clk 0:00:09.5]} 77... Ne3+ {[%clk 0:00:06]} 78. Kc1 {[%clk 0:00:10]}
78... Rc2+ {[%clk 0:00:06.1]} 79. Kb1 {[%clk 0:00:10.2]} 79... Rg2 {[%clk
0:00:07]} 80. Rd3 {[%clk 0:00:09.3]} 80... Rxg3 {[%clk 0:00:06.9]} 81. Bxg4
{[%clk 0:00:09.5]} 81... Rg1+ {[%clk 0:00:05.7]} 82. Bd1 {[%clk 0:00:09.1]}
82... Nxd1 {[%clk 0:00:05.5]} 83. Kc2 {[%clk 0:00:09.1]} 83... Nf2 {[%clk
0:00:05.3]} 84. Rd8 {[%clk 0:00:09.2]} 84... Ne4 {[%clk 0:00:05.3]} 85. Kd3
{[%clk 0:00:09.1]} 85... Rd1+ {[%clk 0:00:03.7]} 86. Ke3 {[%clk 0:00:08.4]}
86... Rxd8 {[%clk 0:00:04.6]} 0-1

[Event "*** Titled Tuesday Blitz"]
[Site "Chess.com"]
[Date "2021.03.30"]
[Round "1"]
[White "alexrustemov"]
[Black "Bacyanide"]
[Result "1/2-1/2"]
[WhiteElo "2722"]
[BlackElo "2404"]
[TimeControl "180+1"]
[EndTime "10:09:21 PDT"]
[Termination "Game drawn - insufficient material"]

1. d4 {[%clk 0:03:00.9]} 1... Nf6 {[%clk 0:02:54.4]} 2. c4 {[%clk 0:03:00.7]}
2... e6 {[%clk 0:02:54.3]} 3. Nf3 {[%clk 0:03:00.6]} 3... d5 {[%clk 0:02:49.8]}
4. Nc3 {[%clk 0:02:59.9]} 4... c5 {[%clk 0:02:49.4]} 5. cxd5 {[%clk 0:02:58.6]}
5... exd5 {[%clk 0:02:50.3]} 6. g3 {[%clk 0:02:57.9]} 6... Nc6 {[%clk
0:02:49.1]} 7. Bg2 {[%clk 0:02:57.3]} 7... cxd4 {[%clk 0:02:50]} 8. Nxd4 {[%clk
0:02:56.8]} 8... Bc5 {[%clk 0:02:50.5]} 9. Nb3 {[%clk 0:02:57.2]} 9... Bb6
{[%clk 0:02:50.5]} 10. O-O {[%clk 0:02:57.2]} 10... d4 {[%clk 0:02:50.1]} 11.
Na4 {[%clk 0:02:56.6]} 11... O-O {[%clk 0:02:50.1]} 12. Bg5 {[%clk 0:02:56.6]}
12... Re8 {[%clk 0:02:49.9]} 13. Re1 {[%clk 0:02:56.7]} 13... h6 {[%clk
0:02:41.3]} 14. Nxb6 {[%clk 0:02:56.7]} 14... axb6 {[%clk 0:02:41]} 15. Bxf6
{[%clk 0:02:56.6]} 15... Qxf6 {[%clk 0:02:40.9]} 16. Bxc6 {[%clk 0:02:57]} 16...
bxc6 {[%clk 0:02:41.8]} 17. Qxd4 {[%clk 0:02:56.6]} 17... Qd8 {[%clk 0:02:39.4]}
18. Qc3 {[%clk 0:02:55.4]} 18... c5 {[%clk 0:02:35]} 19. Rad1 {[%clk 0:02:54.9]}
19... Qc7 {[%clk 0:02:28.9]} 20. Nc1 {[%clk 0:02:54.7]} 20... Bb7 {[%clk
0:02:25.4]} 21. f3 {[%clk 0:02:46.3]} 21... h5 {[%clk 0:02:23.9]} 22. a3 {[%clk
0:02:33.3]} 22... h4 {[%clk 0:02:22.6]} 23. Kf2 {[%clk 0:02:32.9]} 23... Ra4
{[%clk 0:02:19]} 24. Nd3 {[%clk 0:02:29.8]} 24... Qc8 {[%clk 0:01:59.5]} 25. Nf4
{[%clk 0:02:23.5]} 25... Rxf4 {[%clk 0:01:44.1]} 26. gxf4 {[%clk 0:02:22.3]}
26... Qh3 {[%clk 0:01:44.7]} 27. e4 {[%clk 0:01:36.8]} 27... Qxh2+ {[%clk
0:01:15.2]} 28. Ke3 {[%clk 0:01:36.3]} 28... Qg3 {[%clk 0:00:51.1]} 29. Kd2
{[%clk 0:01:21.4]} 29... Qxf4+ {[%clk 0:00:44.2]} 30. Qe3 {[%clk 0:01:15.5]}
30... Qf6 {[%clk 0:00:43.1]} 31. Kc1 {[%clk 0:01:13.6]} 31... h3 {[%clk
0:00:33.9]} 32. Rg1 {[%clk 0:01:09.7]} 32... Bc8 {[%clk 0:00:30.1]} 33. Qg5
{[%clk 0:01:03.5]} 33... Qxg5+ {[%clk 0:00:23.1]} 34. Rxg5 {[%clk 0:01:04.4]}
34... Be6 {[%clk 0:00:20.6]} 35. Kd2 {[%clk 0:00:58]} 35... g6 {[%clk
0:00:20.5]} 36. Ke3 {[%clk 0:00:56.4]} 36... Kg7 {[%clk 0:00:20.8]} 37. f4
{[%clk 0:00:53]} 37... f6 {[%clk 0:00:19.7]} 38. Rg3 {[%clk 0:00:52]} 38... Kf7
{[%clk 0:00:19.7]} 39. Rh1 {[%clk 0:00:36.6]} 39... Bf5 {[%clk 0:00:19.6]} 40.
Rgxh3 {[%clk 0:00:22.9]} 40... Bxh3 {[%clk 0:00:15.2]} 41. Rxh3 {[%clk
0:00:23.8]} 41... g5 {[%clk 0:00:13.2]} 42. fxg5 {[%clk 0:00:21.7]} 42... fxg5
{[%clk 0:00:14.1]} 43. Rh7+ {[%clk 0:00:21.5]} 43... Kg6 {[%clk 0:00:14]} 44.
Rb7 {[%clk 0:00:21.3]} 44... Re6 {[%clk 0:00:14.2]} 45. Kf3 {[%clk 0:00:21.6]}
45... Kf6 {[%clk 0:00:14]} 46. a4 {[%clk 0:00:19.9]} 46... Ke5 {[%clk
0:00:13.8]} 47. Ke3 {[%clk 0:00:20.4]} 47... Rh6 {[%clk 0:00:13]} 48. Re7+
{[%clk 0:00:19.7]} 48... Re6 {[%clk 0:00:12.3]} 49. Rg7 {[%clk 0:00:19]} 49...
Kf6 {[%clk 0:00:11.3]} 50. Rb7 {[%clk 0:00:19]} 50... Ke5 {[%clk 0:00:11.4]} 51.
b3 {[%clk 0:00:18.8]} 51... Rh6 {[%clk 0:00:11.2]} 52. Re7+ {[%clk 0:00:16.9]}
52... Kd6 {[%clk 0:00:10.9]} 53. Rg7 {[%clk 0:00:15.6]} 53... Rh3+ {[%clk
0:00:10.9]} 54. Kd2 {[%clk 0:00:15.9]} 54... Rg3 {[%clk 0:00:11]} 55. Rg6+
{[%clk 0:00:13.1]} 55... Ke5 {[%clk 0:00:10.9]} 56. Rxb6 {[%clk 0:00:12.7]}
56... Kxe4 {[%clk 0:00:11.1]} 57. a5 {[%clk 0:00:12.8]} 57... Rf3 {[%clk
0:00:08.7]} 58. a6 {[%clk 0:00:12.1]} 58... Rf8 {[%clk 0:00:08.2]} 59. a7 {[%clk
0:00:11.1]} 59... Ra8 {[%clk 0:00:07.6]} 60. Rb7 {[%clk 0:00:10.5]} 60... g4
{[%clk 0:00:08.5]} 61. Ke2 {[%clk 0:00:10.3]} 61... g3 {[%clk 0:00:08.4]} 62.
Rd7 {[%clk 0:00:10.3]} 62... Kf4 {[%clk 0:00:05.8]} 63. Kf1 {[%clk 0:00:10.3]}
63... Kf3 {[%clk 0:00:05.8]} 64. Kg1 {[%clk 0:00:10.3]} 64... Ke3 {[%clk
0:00:05.7]} 65. Kg2 {[%clk 0:00:09]} 65... Kf4 {[%clk 0:00:05.8]} 66. Rf7+
{[%clk 0:00:08.4]} 66... Kg4 {[%clk 0:00:06.2]} 67. Rg7+ {[%clk 0:00:08.3]}
67... Kf4 {[%clk 0:00:06.6]} 68. Rc7 {[%clk 0:00:07.4]} 68... Rd8 {[%clk
0:00:05.3]} 69. Rf7+ {[%clk 0:00:06.4]} 69... Kg4 {[%clk 0:00:03.9]} 70. Rg7+
{[%clk 0:00:06.9]} 70... Kf4 {[%clk 0:00:04.1]} 71. Rxg3 {[%clk 0:00:07.8]}
71... Rd2+ {[%clk 0:00:03.4]} 72. Kh3 {[%clk 0:00:08.1]} 72... Ra2 {[%clk
0:00:04.3]} 73. Rg7 {[%clk 0:00:08.2]} 73... Ke4 {[%clk 0:00:04.5]} 74. Rd7
{[%clk 0:00:07.5]} 74... Ke5 {[%clk 0:00:03.4]} 75. Kg4 {[%clk 0:00:07.8]} 75...
Ke6 {[%clk 0:00:03.7]} 76. Rb7 {[%clk 0:00:07.9]} 76... Kd5 {[%clk 0:00:03.7]}
77. Kf5 {[%clk 0:00:07.9]} 77... Kc6 {[%clk 0:00:03.9]} 78. Rh7 {[%clk
0:00:08.3]} 78... Kb6 {[%clk 0:00:04.1]} 79. Ke5 {[%clk 0:00:08]} 79... Rxa7
{[%clk 0:00:04.6]} 80. Rxa7 {[%clk 0:00:05.8]} 80... Kxa7 {[%clk 0:00:05.5]} 81.
Kd5 {[%clk 0:00:06.1]} 81... Kb6 {[%clk 0:00:06.4]} 82. Kc4 {[%clk 0:00:06.4]}
82... Kc6 {[%clk 0:00:06.6]} 83. b4 {[%clk 0:00:06.9]} 83... cxb4 {[%clk
0:00:06.7]} 84. Kxb4 {[%clk 0:00:07.3]} 1/2-1/2